Cogmind - Beta 10.2 @@@ ROGUE MODE // 2021.11.28 @ 22:28:23 Player: TheSlyFawkes Result: Self-destructed Performance ------------- Evolutions (1) 500 Regions Visited (3) 600 Robots Destroyed (31) 155 Value Destroyed (457) 457 Prototype IDs (3) 60 Alien Tech Used (0) 0 Bonus (8) 8 TOTAL SCORE: 1780 Bonus ------- High Alert Combat Kills 8 Cogmind --------- Core Integrity 306/400 Matter 194/300 Energy 100/100 System Corruption 0% Temperature Cool (20) Movement Core (50) Location -9/Materials Parts ------- > --- POWER (2) -------- (None) > --- PROPULSION (3) --- (None) > --- UTILITY (2) ------ Propulsion Shielding > --- WEAPON (2) ------- Light Assault Rifle Mini Grenade Launcher > --- INVENTORY (4) ---- Flight Unit Proton Bomb Trap Peak State ------------ > --- POWER ------------ Light Ion Engine > --- PROPULSION ------- Flight Unit Flight Unit > --- UTILITY ---------- Propulsion Shielding > --- WEAPON ----------- Mini Grenade Launcher Mini Grenade Launcher > --- INVENTORY -------- Structural Scanner Mini Grenade Launcher Mini Grenade Launcher [Rating: 8] Favorites ----------- Power Light Ion Engine Engine Light Ion Engine Propulsion Flight Unit Treads Light Treads Flight Unit Flight Unit Utility Propulsion Shielding Storage Small Storage Unit Protection Propulsion Shielding Weapon Light Assault Rifle Energy Gun Medium Laser Ballistic Gun Light Assault Rifle Launcher Mini Grenade Launcher Special Weapon Mining Laser Build | -11 -10 -10 -9 ------- Run | Scr Mat Min Mat Slots Evolved 2 | . . . 2 Power 1 | . . . 1 Propulsion 1 | . . . 1 Utility . | . . . . Weapon . | . . . . Parts Attached 20 | 4 16 . . Power 3 | 1 2 . . Engine 3 | 1 2 . . Core . | . . . . Reactor . | . . . . Propulsion 6 | 2 4 . . Treads 2 | 2 . . . Leg . | . . . . Wheel . | . . . . Hover . | . . . . Flight 4 | . 4 . . Utility 2 | 1 1 . . Device . | . . . . Storage 1 | 1 . . . Processor . | . . . . Hackware . | . . . . Protection 1 | . 1 . . Artifact . | . . . . Weapon 9 | . 9 . . Energy Gun 3 | . 3 . . Energy Cannon . | . . . . Ballistic Gun 2 | . 2 . . Ballistic Cannon . | . . . . Launcher 3 | . 3 . . Special Weapon 1 | . 1 . . Impact Weapon . | . . . . Slashing Weapon . | . . . . Piercing Weapon . | . . . . Special Melee Weapon . | . . . . Unidentified Prototypes . | . . . . Parts Lost 7 | . 4 . 3 Power 2 | . 1 . 1 Propulsion 3 | . 1 . 2 Utility . | . . . . Weapon 2 | . 2 . . Highest Loss Streak 4 | . 4 . 3 Average Slot Usage (%) 78 | . 77 85 66 Engine 13 | . 13 14 11 Flight 26 | . 26 28 22 Protection 11 | . 10 14 11 Energy Gun 1 | . 2 . . Ballistic Gun 12 | . 11 14 11 Launcher 11 | . 11 14 11 Naked Turns . | . . . . Heaviest Build 11 | 7 11 6 6 Greatest Support 40 | 40 40 8 8 Greatest Overweight (x) . | . . . . Average Overweight (x) . | . . . . Largest Inventory Capacity 6 | 6 6 4 4 Average Capacity 4 | 5 4 4 4 Most Carried 5 | 5 4 4 2 Average Carried 3 | 3 3 3 2 Final Capacity 6 | 6 4 4 4 Final Carried 4 | 4 4 2 2 Class Distribution -------------------- 100% | Mutant Dominant Class ---------------- Mutant | -10/Materials Mutant | -10/Mines Mutant | -9/Materials Resources | -11 -10 -10 -9 ----------- Run | Scr Mat Min Mat Matter Collected 540 | 240 259 34 7 Remotely . | . . . . Salvage Created 308 | . 142 17 149 Parts 53 | . 24 5 24 Haulers Intercepted 2 | . . . 2 Recyclers Shooed . | . . . . Parts Field Recycled . | . . . . Retrieved Matter . | . . . . Parts Self-Destructed . | . . . . Prevented . | . . . . Kills | -11 -10 -10 -9 ------- Run | Scr Mat Min Mat Combat Hostiles Destroyed 19 | . 10 3 6 Guns 3 | . 3 . . Cannons 1 | . 1 . . AOE 15 | . 6 3 6 Classes Destroyed 7 | . 4 . 3 Worker 4 | . 4 . . Builder 1 | . . . 1 Tunneler 1 | . . . 1 Hauler 2 | . . . 2 Watcher 4 | . 3 . 1 Swarmer 14 | . 6 3 5 Grunt 5 | . 4 . 1 Best Kill Streak 9 | . 6 3 9 Combat Bots Only 5 | . 3 3 5 Max Kills in Single Turn 3 | . 3 3 3 Gunslinging . | . . . . Exploded 3 | . 2 3 2 Melee . | . . . . Uniques/NPCs Destroyed . | . . . . Combat | -11 -10 -10 -9 -------- Run | Scr Mat Min Mat Damage Taken 645 | . 391 14 240 Core 278 | . 170 14 94 Absorbed by Shields . | . . . . Core Remaining (%) 63 | 100 . 26 . Volleys Fired 49 | . 34 1 14 Largest 2 | . 2 2 2 Hottest 100 | . 100 50 50 Shots Fired 81 | . 54 2 25 Gun 55 | . 40 1 14 Cannon . | . . . . Launcher 24 | . 12 1 11 Special 2 | . 2 . . Kinetic 41 | . 26 1 14 Thermal 16 | . 16 . . Explosive 24 | . 12 1 11 Electromagnetic . | . . . . Robot Hit Streak 4 | . 4 1 2 Robot Miss Streak 4 | . 4 1 4 Penetration Max . | . . . . Secondary Targets 1 | . 1 . . Max Gunslinging Chain 1 | . 1 . . Shots Hit Robots 35 | . 26 1 8 Core Hits 48 | . 30 3 15 Critical Hits . | . . . . Critical Kills . | . . . . Critical Parts Destroyed . | . . . . Melee Attacks . | . . . . Impact . | . . . . Slashing . | . . . . Piercing . | . . . . Sneak Attacks . | . . . . Combat Hostiles . | . . . . Follow-up Attacks . | . . . . Damage Inflicted 1867 | . 939 155 773 Guns 257 | . 199 . 58 Cannons . | . . . . Explosions 1586 | . 716 155 715 Melee . | . . . . Ramming . | . . . . Kinetic 158 | . 100 . 58 Thermal 123 | . 123 . . Explosive 1586 | . 716 155 715 Electromagnetic . | . . . . Impact . | . . . . Slashing . | . . . . Piercing . | . . . . Highest Corruption . | . . . . Average Corruption . | . . . . Corruption Purged . | . . . . Overload Shots . | . . . . Overflow Damage 58 | . 27 . 31 Projectiles . | . . . . Explosions 58 | . 27 . 31 Melee . | . . . . Knockbacks . | . . . . Impact . | . . . . Kinetic . | . . . . Secondary . | . . . . Self-Inflicted Damage 169 | . 40 . 129 Shots 5 | . 1 . 4 Rammed . | . . . . Targets Rammed . | . . . . Kicked . | . . . . Crushed . | . . . . Highest Temperature 188 | . 188 16 20 Average Temperature 49 | . 59 12 9 Received Heat Transfer 69 | . 12 9 48 Siege Activations . | . . . . Robots Corrupted . | . . . . Combat Hostiles . | . . . . Parts Fried . | . . . . Impact Corruptions . | . . . . Robots Melted . | . . . . Combat Hostiles . | . . . . Parts Melted . | . . . . Heat Transferred 346 | . 346 . . Parts Sabotaged . | . . . . Parts Stolen . | . . . . Parts Stripped . | . . . . Power Chain Reactions . | . . . . Missiles Intercepted . | . . . . Alert | -11 -10 -10 -9 ------- Run | Scr Mat Min Mat Peak Influence 441 | . 252 262 441 Initial 102 | . . 97 102 Average 137 | . 123 166 230 Maximum Alert Level 2 | . 1 1 2 Low Security (%) 72 | 100 78 61 51 Level 1 26 | . 21 38 38 Level 2 1 | . . . 9 Level 3 . | . . . . Level 4 . | . . . . Level 5 . | . . . . High Security . | . . . . Max Security . | . . . . Squads Dispatched 4 | . 2 . 2 Investigation 3 | . 1 . 2 Extermination . | . . . . Reinforcement 1 | . 1 . . Assault . | . . . . Garrison . | . . . . Intercept . | . . . . Construction Impeded . | . . . . Haulers Reinforced . | . . . . Stealth | -11 -10 -10 -9 --------- Run | Scr Mat Min Mat Distress Signals 5 | . 4 . 1 Communications Jammed . | . . . . Distress Signals . | . . . . Times Spotted 40 | . 22 4 14 Peak Tracking Total 5 | . 5 2 5 Tactical Retreats 5 | . 1 2 2 Traps | -11 -10 -10 -9 ------- Run | Scr Mat Min Mat Traps Triggered 2 | . 1 . 1 Indirectly . | . . . . Trap Hack Attempts . | . . . . Triggered . | . . . . Disarmed . | . . . . Reprogrammed . | . . . . Reused . | . . . . Traps Extracted . | . . . . Installed 1 | . . 1 . Triggered . | . . . . Machines | -11 -10 -10 -9 ---------- Run | Scr Mat Min Mat Machines Disabled 6 | . 2 . 4 Max in Single Turn 1 | . 1 . 1 Machines Sabotaged . | . . . . Garrisons Compromised . | . . . . Overloaded Fab Kills . | . . . . Fab Network Shutdowns . | . . . . Hacking | -11 -10 -10 -9 --------- Run | Scr Mat Min Mat Machines Accessed 16 | . 8 1 7 Terminals 15 | . 7 1 7 Fabricators . | . . . . Repair Stations 1 | . 1 . . Recycling Units . | . . . . Scanalyzers . | . . . . Garrison Access . | . . . . Total Hacks 48 | . 30 2 16 Successful 29 | . 22 1 6 Failed 19 | . 8 1 10 Catastrophic 8 | . 2 . 6 Database Lockouts . | . . . . Manual 16 | . 8 . 8 Terminals 44 | . 26 2 16 Fabricators . | . . . . Repair Stations 4 | . 4 . . Recycling Units . | . . . . Scanalyzers . | . . . . Garrison Access . | . . . . Terminal Hacks 25 | . 18 1 6 Part Schematic 1 | . 1 . . Prototype ID Bank 1 | . . . 1 Branch Access Points 2 | . 1 . 1 Terminal Index 1 | . 1 . . Alert Level 4 | . 3 . 1 Unreport Threat 1 | . 1 . . Locate Traps 5 | . 4 . 1 Investigation Status 1 | . 1 . . Recall Investigation 1 | . . . 1 Registered Components 1 | . 1 . . Zone Layout 7 | . 5 1 1 Fabricator Hacks . | . . . . Repair Station Hacks 4 | . 4 . . Scan Component 2 | . 2 . . Repair 2 | . 2 . . Recycling Unit Hacks . | . . . . Scanalyzer . | . . . . Garrison Access Hacks . | . . . . Unauthorized Hacks . | . . . . Terminals . | . . . . Fabricators . | . . . . Repair Stations . | . . . . Recycling Units . | . . . . Scanalyzers . | . . . . Garrison Access . | . . . . Data Cores Recovered . | . . . . Used . | . . . . Hacking Detections 15 | . 7 1 7 Full Trace Events 1 | . . . 1 Feedback Events . | . . . . Feedback Blocked . | . . . . Robot Schematics Acquired . | . . . . Robots Built . | . . . . Matter . | . . . . Time . | . . . . Total Robot Build Rating . | . . . . Part Schematics Acquired 1 | . 1 . . Parts Built . | . . . . Matter . | . . . . Time . | . . . . Total Part Build Rating . | . . . . Parts Repaired 2 | . 2 . . Time 52 | . 52 . . Parts Recycled . | . . . . Recycled Matter . | . . . . Retrieved Matter . | . . . . Retrieved Components . | . . . . Parts Scanalyzed . | . . . . Part Schematics Acquired . | . . . . Parts Damaged . | . . . . Bothacking | -11 -10 -10 -9 ------------ Run | Scr Mat Min Mat Used RIF Installer . | . . . . Robots Hacked . | . . . . Non-combat . | . . . . Combat . | . . . . Robot Hacks Applied . | . . . . Relay Couplers Released . | . . . . Robots Rewired . | . . . . Allies Hacked . | . . . . Hacks Repelled . | . . . . Allies | -11 -10 -10 -9 -------- Run | Scr Mat Min Mat Total Allies . | . . . . Largest Group . | . . . . Highest-Rated Group . | . . . . Highest-Rated Ally . | . . . . Total Orders . | . . . . Ally Attacks . | . . . . Total Damage . | . . . . Kills . | . . . . Allies Corrupted . | . . . . Allies Melted . | . . . . Intel | -11 -10 -10 -9 ------- Run | Scr Mat Min Mat Robot Analysis Total . | . . . . Derelict Logs Recovered 2 | . . 2 . Drone Launches . | . . . . Drone Recoveries . | . . . . Exploration | -11 -10 -10 -9 ------------- Run | Scr Mat Min Mat Turns Passed 1267 | 91 718 306 152 Spaces Moved 2049 | 60 1095 646 248 Core 14 | 14 . . . Treads 55 | 46 9 . . Legs . | . . . . Wheels . | . . . . Hover . | . . . . Flight 1980 | . 1086 646 248 Fastest Speed 37 | 50 37 37 37 Average Speed 40 | 134 38 37 37 Slowest Speed 160 | 160 160 37 37 Overloaded Moves . | . . . . Propulsion Burnouts . | . . . . Robots Hopped 4 | . 3 1 . Cave-ins Triggered . | . . . . Exploration Rate (%) 50 | 5 94 81 23 Regions Visited 3 Branch Regions 1 Pre-discovered Areas . | . . . . Known Exits Taken 1 | . 1 . . Unknown Exits Taken 2 | 1 . 1 . Scrap Searched 1 | . . 1 . Spaces Dug . | . . . . Terrain Destroyed 185 | . 71 11 103 Melee . | . . . . Projectile . | . . . . AOE 185 | . 71 11 103 Terrain Rammed . | . . . . Walls Destroyed . | . . . . Machines Disabled . | . . . . Actions | -11 -10 -10 -9 --------- Run | Scr Mat Min Mat Total 2409 | 70 1340 713 286 Wait 259 | . 180 55 24 Move 2038 | 59 1088 643 248 Hop 4 | . 3 1 . Pick Up 24 | 7 12 5 . Fast Attach 4 | 1 3 . . Attach 13 | 3 10 . . Detach . | . . . . Swap 3 | . 3 . . Drop 14 | . 7 7 . Fire 49 | . 34 1 14 Melee . | . . . . Ram . | . . . . Kick . | . . . . Crush . | . . . . Escape Stasis . | . . . . Rewire . | . . . . Trap 1 | . . 1 . Miscellaneous . | . . . . Route ------- -11/Scrapyard -10/Materials (discovered 5 exits: *Mat x3 / *Min x2) -10/Mines -9/Materials (discovered 1 exit: Min) History --------- Turn | Location | Event 10 | -11/Scrapyard | Discovered new exit (range 15) 92 | -11/Scrapyard | Entered Materials 181 | -10/Materials | Discovered new exit (range 11) 181 | -10/Materials | Identified exit to Mines 267 | -10/Materials | Lost 4 parts (1p1n2w) 305 | -10/Materials | Build established: Mutant 333 | -10/Materials | Discovered new exit (range 10) 335 | -10/Materials | Core integrity fell below 50% 391 | -10/Materials | Discovered new exit (range 15) 671 | -10/Materials | Discovered new exit (range 8) 762 | -10/Materials | Repaired Flight Unit 789 | -10/Materials | Repaired Lgt. Ion Engine 810 | -10/Materials | Entered Mines 956 | -10/Mines | Learned Materials garrison access intel 1003 | -10/Mines | Found a hidden stash of uninstalled traps 1029 | -10/Mines | Learned Materials terminal intel 1032 | -10/Mines | Discovered new exit (range 5) 1116 | -10/Mines | Entered Materials 1116 | -9/Materials | Evolved 2 slots: Power x1, Propulsion x1 1117 | -9/Materials | Loaded intel: 12 terminal locations 1128 | -9/Materials | Identified exit to Mines 1268 | -9/Materials | Self-destructed Last Messages --------------- Destroyed Welding Torch. S-10 Pest destroyed. U-05 Engineer destroyed. S-10 Pest destroyed. The unstable cave ceiling collapses. Acquired 7 matter. Connecting with Terminal... Terminal disabled. A-02 Transporter destroyed. The unstable cave ceiling collapses. G-34 Mercenary destroyed. R-06 Scavenger collects Mining Laser. The unstable cave ceiling collapses. Nuclear Reactor explodes. Flight Unit destroyed. Destroyed Flight Unit. Lgt. Ion Engine destroyed. Destroyed Lgt. Ion Engine. Flight Unit destroyed. Destroyed Flight Unit. Map ----- +----------------------------------------------------+ | ??????????????????????????????# """ # # """ | | ??????????????????????????????# # # """ | | ??????????????????????????????# + + | | ??????????????????????????????# "" # ####### | | ???????????????????#######????# S"" # #?????? | | ???????????????????# #????# "" # #?????? | | ????????????????#### #????########## #?????? | | ????????????????? #??????# # #?????? | | ?????????????????# #??????# "T" # #?????? | | ?????????????????# #??????# + ####### | | ?????????????????# #??????# # | | ?????????????????# #??????# # | | ?????????????????# #??????# # | | ???????##+######## #??????############### | | ??????? #?#########??????????# | | ????????? #### ###????????# | | ????????????# # ! ########## | | ????????????# r = a | | ????????????# ! | | ????????????# ! | | ????????????# #### ######### # | | ???????????## # # ##???????# # | | ???????????# * " ####????????# # | | ????????### = ## ###???????????# # | | ????????+ | ###?????????????# # | | ????????##### g @ #????????????????# # | | ???????????# ] #????????????????# # | | ??????????# !%= ##???????????????? # | | ???????????# # ????????????????? # | | ???????????## ## #s ###???????????????" | | ?????????????# ### s?+ ?????????????????" # | | ?????????????# #?# ? # ?????????????????? ## | | ?????????????# #?#? # ??????????????????? ?? | | ?????????????? ??? ?# """??????????????????????? | | ?????????????? ??# ??# """??????????????????????? | | ?????????????? ??#???# """??????????????????????? | | ?????????????? ??????# ?????????????????????????? | | ?????????????? ??????+ ?????????????????????????? | | ?????????????? ??????# ?????????????????????????? | | ??????????????#??????#!??????????????????????????? | | ?????????????????????????????????????????>???????? | | ?????????????????????????????????????????????????? | | ?????????????????????????????????????????????????? | | ?????????????????????????????????????????????????? | | ?????????????????????????????????????????????????? | | ?????????????????????????????????????????????????? | | ?????????????????????????????????????????????????? | | ?????????????????????????????????????????????????? | | ?????????????????????????T???????????????????????? | | ?????????????????????????????????????????????????? | +----------------------------------------------------+ Best States ------------- Heat Dissipation 28 Energy Generation 10 Energy Capacity 125 Matter Stores 300 Matter Capacity 300 Sight Range 16 Terrain Scan Density 10 Propulsion Shielding 33 Evasion (%) 62 Recoil Reduction 2 Item Schematics ----------------- Lgt. Cannon | -10/Materials | Hacked Robot Schematics ------------------ None Fabricated ------------ Nothing Alien Tech Used ----------------- None Achievements -------------- None Challenges ------------ None Game ------ Seed ParticleFrostSteel Manual? 0 Play Time 00:38:55 Cumulative 18.7 hours Start 2021.11.28 @ 21:48:37 End 2021.11.28 @ 22:28:23 Sessions 1 Manual Loads 0 Difficulty Rogue Special Mode None Game No. 26 Rogue 25 Adventurer 1 Explorer 0 Win Type - Total 0 Types 0/0/0/0/0/0/0/0/0 Lore% 19 Gallery% 17 Achievement% 21 Wizard Run 0 Options --------- ASCII 0 Keyboard 0 Movement Mouse Keybinds 0 Fullscreen 1 Font 18/SmallcapsGlow Map View 76x50 Tactical HUD 0 Map Filters NONE Filters NONE Steam 1 RUN: 401b0095-3ec6-49a9-b0fe-471e9db9da9e